[Event "*** Titled Tuesday Blitz"]
[Site "Chess.com"]
[Date "2020.12.29"]
[Round "8"]
[White "atalz0"]
[Black "Neftegor"]
[Result "0-1"]
[WhiteElo "2369"]
[BlackElo "2557"]
[TimeControl "180+1"]
[EndTime "11:28:10 PST"]
[Termination "Neftegor won on time"]

1. d4 {[%clk 0:03:00.9]} 1... Nf6 {[%clk 0:02:56.8]} 2. c4 {[%clk 0:03:01]} 2...
e6 {[%clk 0:02:56.8]} 3. Nc3 {[%clk 0:03:01.1]} 3... Bb4 {[%clk 0:02:55.3]} 4.
Qc2 {[%clk 0:03:01.6]} 4... Nc6 {[%clk 0:02:52.2]} 5. Nf3 {[%clk 0:03:01.2]}
5... O-O {[%clk 0:02:49.8]} 6. Bd2 {[%clk 0:03:01.2]} 6... d6 {[%clk 0:02:49.2]}
7. a3 {[%clk 0:03:01.4]} 7... Bxc3 {[%clk 0:02:48.1]} 8. Bxc3 {[%clk 0:03:02.3]}
8... Qe7 {[%clk 0:02:47.5]} 9. e3 {[%clk 0:03:01.9]} 9... e5 {[%clk 0:02:47.6]}
10. dxe5 {[%clk 0:03:02.1]} 10... dxe5 {[%clk 0:02:47.2]} 11. Be2 {[%clk
0:02:58.8]} 11... Bg4 {[%clk 0:02:46.4]} 12. O-O {[%clk 0:02:57.1]} 12... Rfe8
{[%clk 0:02:46.3]} 13. b4 {[%clk 0:02:56.2]} 13... e4 {[%clk 0:02:42.2]} 14. Nd4
{[%clk 0:02:51.9]} 14... Ne5 {[%clk 0:02:20.8]} 15. Bxg4 {[%clk 0:02:50.7]}
15... Nexg4 {[%clk 0:02:20.6]} 16. h3 {[%clk 0:02:50.4]} 16... Nh6 {[%clk
0:02:20.3]} 17. Rfd1 {[%clk 0:02:42.7]} 17... c6 {[%clk 0:02:20]} 18. Rd2 {[%clk
0:02:34.5]} 18... Nd7 {[%clk 0:02:13.4]} 19. Rad1 {[%clk 0:02:29.1]} 19... Nb6
{[%clk 0:02:13.2]} 20. Bb2 {[%clk 0:02:23.3]} 20... Qg5 {[%clk 0:02:12.3]} 21.
Qc3 {[%clk 0:02:18.6]} 21... f6 {[%clk 0:02:09.1]} 22. Qc2 {[%clk 0:02:03.3]}
22... Qg6 {[%clk 0:01:56.7]} 23. Kh2 {[%clk 0:01:42.3]} 23... Qf7 {[%clk
0:01:56.1]} 24. Rc1 {[%clk 0:01:40.2]} 24... Rad8 {[%clk 0:01:54.6]} 25. a4
{[%clk 0:01:38.4]} 25... Nc8 {[%clk 0:01:47.5]} 26. b5 {[%clk 0:01:18.9]} 26...
c5 {[%clk 0:01:45.4]} 27. Nb3 {[%clk 0:01:18.1]} 27... b6 {[%clk 0:01:45.2]} 28.
Rcd1 {[%clk 0:01:17]} 28... Rxd2 {[%clk 0:01:32]} 29. Rxd2 {[%clk 0:01:10.7]}
29... Nf5 {[%clk 0:01:31.1]} 30. g3 {[%clk 0:01:04.7]} 30... h5 {[%clk 0:01:26]}
31. Qd1 {[%clk 0:01:01.2]} 31... Qg6 {[%clk 0:01:17.4]} 32. Rd7 {[%clk
0:00:52.3]} 32... Nce7 {[%clk 0:01:12.6]} 33. Nd2 {[%clk 0:00:41.6]} 33... Nh6
{[%clk 0:01:09.8]} 34. Qh1 {[%clk 0:00:32.6]} 34... Nef5 {[%clk 0:01:01]} 35.
Nxe4 {[%clk 0:00:19]} 35... Nxe3 {[%clk 0:01:00.2]} 36. Rxg7+ {[%clk 0:00:11.5]}
36... Kxg7 {[%clk 0:00:54.1]} 37. Nxf6 {[%clk 0:00:11.6]} 37... Re6 {[%clk
0:00:46]} 38. Nxh5+ {[%clk 0:00:09.1]} 38... Kh7 {[%clk 0:00:38.3]} 39. Qb7+
{[%clk 0:00:07.6]} 39... Nf7 {[%clk 0:00:37.3]} 40. Nf4 {[%clk 0:00:06.6]} 40...
Nf1+ {[%clk 0:00:35.2]} 41. Kg2 {[%clk 0:00:06.4]} 41... Qe4+ {[%clk 0:00:34.7]}
42. Qxe4+ {[%clk 0:00:05.4]} 42... Rxe4 {[%clk 0:00:34.6]} 43. Kxf1 {[%clk
0:00:05.6]} 43... Rxc4 {[%clk 0:00:34.5]} 44. Ne6 {[%clk 0:00:02.5]} 44... Rxa4
{[%clk 0:00:32.7]} 45. g4 {[%clk 0:00:02.2]} 45... Ra2 {[%clk 0:00:31]} 46. Bf6
{[%clk 0:00:01.5]} 46... Kg6 {[%clk 0:00:29.6]} 0-1

[Event "*** Titled Tuesday Blitz"]
[Site "Chess.com"]
[Date "2020.12.29"]
[Round "8"]
[White "ajdemipopushi"]
[Black "maxip32"]
[Result "0-1"]
[WhiteElo "2348"]
[BlackElo "2506"]
[TimeControl "180+1"]
[EndTime "11:28:11 PST"]
[Termination "maxip32 won on time"]

1. Nf3 {[%clk 0:03:00.9]} 1... Nf6 {[%clk 0:02:59.2]} 2. g3 {[%clk 0:03:01.3]}
2... g6 {[%clk 0:03:00.1]} 3. c4 {[%clk 0:03:01.3]} 3... Bg7 {[%clk 0:03:01]} 4.
Bg2 {[%clk 0:03:01.9]} 4... O-O {[%clk 0:03:01.4]} 5. d4 {[%clk 0:03:02.2]} 5...
d6 {[%clk 0:03:02]} 6. Nc3 {[%clk 0:03:01.9]} 6... Nbd7 {[%clk 0:03:02]} 7. O-O
{[%clk 0:03:02]} 7... e5 {[%clk 0:03:01.9]} 8. h3 {[%clk 0:03:00.5]} 8... Re8
{[%clk 0:03:01.1]} 9. e4 {[%clk 0:03:00.4]} 9... exd4 {[%clk 0:03:01.7]} 10.
Nxd4 {[%clk 0:03:00.4]} 10... Nc5 {[%clk 0:03:02.6]} 11. Re1 {[%clk 0:02:56.5]}
11... a5 {[%clk 0:03:01.2]} 12. Nb3 {[%clk 0:02:55.7]} 12... Ncd7 {[%clk
0:02:45.4]} 13. Be3 {[%clk 0:02:49.6]} 13... a4 {[%clk 0:02:42.4]} 14. Nd4
{[%clk 0:02:48.7]} 14... Nc5 {[%clk 0:02:40.2]} 15. Qc2 {[%clk 0:02:48.1]} 15...
Bd7 {[%clk 0:02:33.1]} 16. Rad1 {[%clk 0:02:46]} 16... Qc8 {[%clk 0:02:32.7]}
17. Kh2 {[%clk 0:02:44.1]} 17... h5 {[%clk 0:02:22.5]} 18. Ndb5 {[%clk
0:02:29.8]} 18... Bc6 {[%clk 0:02:19.7]} 19. Bxc5 {[%clk 0:01:56.5]} 19... dxc5
{[%clk 0:02:20.6]} 20. e5 {[%clk 0:01:04.9]} 20... Nh7 {[%clk 0:02:07]} 21. f4
{[%clk 0:00:59.2]} 21... h4 {[%clk 0:02:04]} 22. gxh4 {[%clk 0:00:40]} 22... Bh6
{[%clk 0:01:39.1]} 23. Rf1 {[%clk 0:00:31.9]} 23... f6 {[%clk 0:01:22.5]} 24.
Qxg6+ {[%clk 0:00:30.5]} 24... Bg7 {[%clk 0:01:22.4]} 25. Nd5 {[%clk 0:00:16.9]}
25... fxe5 {[%clk 0:00:57.1]} 26. Nbxc7 {[%clk 0:00:15.5]} 26... exf4 {[%clk
0:00:50.8]} 27. Rxf4 {[%clk 0:00:14]} 27... Re2 {[%clk 0:00:39.7]} 28. Rf7
{[%clk 0:00:09.8]} 28... Qf8 {[%clk 0:00:20.2]} 29. Rxf8+ {[%clk 0:00:09.2]}
29... Rxf8 {[%clk 0:00:21.1]} 30. Kh1 {[%clk 0:00:07.7]} 30... Rff2 {[%clk
0:00:18.1]} 31. Rg1 {[%clk 0:00:06.4]} 31... Kh8 {[%clk 0:00:11.7]} 32. Ne6
{[%clk 0:00:05.7]} 32... Be5 {[%clk 0:00:10.9]} 33. Ng5 {[%clk 0:00:04.1]} 33...
Nf8 {[%clk 0:00:09.4]} 34. Qh5+ {[%clk 0:00:03.7]} 34... Kg7 {[%clk 0:00:08.6]}
35. Ne4 {[%clk 0:00:02.3]} 35... Ng6 {[%clk 0:00:02.9]} 36. Nxf2 {[%clk
0:00:01.4]} 36... Rxf2 {[%clk 0:00:03.8]} 0-1

[Event "*** Titled Tuesday Blitz"]
[Site "Chess.com"]
[Date "2020.12.29"]
[Round "8"]
[White "rynos0411"]
[Black "yobdc"]
[Result "1-0"]
[WhiteElo "2344"]
[BlackElo "2439"]
[TimeControl "180+1"]
[EndTime "11:28:13 PST"]
[Termination "rynos0411 won on time"]

1. d4 {[%clk 0:03:00.9]} 1... e6 {[%clk 0:02:59.8]} 2. c4 {[%clk 0:02:59.7]}
2... f5 {[%clk 0:02:59.8]} 3. g3 {[%clk 0:02:58.6]} 3... Nf6 {[%clk 0:03:00]} 4.
Bg2 {[%clk 0:02:59.2]} 4... d5 {[%clk 0:03:00.1]} 5. Nc3 {[%clk 0:02:59.1]} 5...
c6 {[%clk 0:03:00.2]} 6. Nf3 {[%clk 0:02:57.9]} 6... Bd6 {[%clk 0:03:00.4]} 7.
O-O {[%clk 0:02:51.3]} 7... O-O {[%clk 0:03:00.4]} 8. b3 {[%clk 0:02:43.7]} 8...
Ne4 {[%clk 0:02:57.1]} 9. Bb2 {[%clk 0:02:37.7]} 9... Nd7 {[%clk 0:02:56.4]} 10.
Rc1 {[%clk 0:02:36.2]} 10... Qe7 {[%clk 0:02:42.7]} 11. Nd2 {[%clk 0:02:30.6]}
11... a5 {[%clk 0:02:39.4]} 12. f3 {[%clk 0:02:26.1]} 12... Nxc3 {[%clk
0:02:36.7]} 13. Bxc3 {[%clk 0:02:25.5]} 13... f4 {[%clk 0:02:26.4]} 14. g4
{[%clk 0:01:53.5]} 14... b5 {[%clk 0:02:23.8]} 15. Re1 {[%clk 0:01:47.3]} 15...
a4 {[%clk 0:02:12.8]} 16. e4 {[%clk 0:01:38.9]} 16... fxe3 {[%clk 0:02:12.5]}
17. Rxe3 {[%clk 0:01:23.9]} 17... Bf4 {[%clk 0:02:12.2]} 18. Re2 {[%clk
0:01:17.5]} 18... axb3 {[%clk 0:01:57.1]} 19. axb3 {[%clk 0:01:15]} 19... b4
{[%clk 0:01:52.7]} 20. Bb2 {[%clk 0:01:08.5]} 20... Qh4 {[%clk 0:01:45.8]} 21.
Bh1 {[%clk 0:00:53.6]} 21... Ra2 {[%clk 0:01:33.3]} 22. Rb1 {[%clk 0:00:52.9]}
22... h5 {[%clk 0:01:24.1]} 23. Nf1 {[%clk 0:00:18.9]} 23... Nf6 {[%clk
0:01:09.5]} 24. Bc1 {[%clk 0:00:04.4]} 24... Rxe2 {[%clk 0:01:02.7]} 25. Qxe2
{[%clk 0:00:04.5]} 25... Bxc1 {[%clk 0:00:57]} 26. Rxc1 {[%clk 0:00:05]} 26...
hxg4 {[%clk 0:00:57.1]} 27. Ng3 {[%clk 0:00:04.9]} 27... gxf3 {[%clk 0:00:52.7]}
28. Bxf3 {[%clk 0:00:05.8]} 28... Qxd4+ {[%clk 0:00:52.6]} 29. Kg2 {[%clk
0:00:04.5]} 29... Ng4 {[%clk 0:00:44.3]} 30. Bxg4 {[%clk 0:00:02.1]} 30... Rf6
{[%clk 0:00:28.9]} 31. Rd1 {[%clk 0:00:01.9]} 31... Qc3 {[%clk 0:00:22.7]} 32.
Rd3 {[%clk 0:00:02]} 32... Qc1 {[%clk 0:00:20.4]} 33. Bf3 {[%clk 0:00:02.5]}
33... Ba6 {[%clk 0:00:14.1]} 34. Re3 {[%clk 0:00:01.7]} 34... Kf7 {[%clk
0:00:04.7]} 35. Bh5+ {[%clk 0:00:01.3]} 35... Ke7 {[%clk 0:00:04.8]} 36. Bf3
{[%clk 0:00:02.2]} 36... dxc4 {[%clk 0:00:03.4]} 37. bxc4 {[%clk 0:00:03.1]}
37... Bxc4 {[%clk 0:00:03.6]} 38. Qe1 {[%clk 0:00:04]} 38... b3 {[%clk
0:00:03.4]} 39. Qxc1 {[%clk 0:00:04]} 39... Bd5 {[%clk 0:00:01.9]} 40. Qb2
{[%clk 0:00:04.9]} 1-0

[Event "*** Titled Tuesday Blitz"]
[Site "Chess.com"]
[Date "2020.12.29"]
[Round "8"]
[White "Das_Virus_2020"]
[Black "ferdipy"]
[Result "0-1"]
[WhiteElo "2461"]
[BlackElo "2198"]
[TimeControl "180+1"]
[EndTime "11:28:13 PST"]
[Termination "ferdipy won by resignation"]

1. e4 {[%clk 0:03:00.9]} 1... c5 {[%clk 0:03:00.3]} 2. Nc3 {[%clk 0:02:58.7]}
2... Nc6 {[%clk 0:03:00.3]} 3. f4 {[%clk 0:02:58.1]} 3... g6 {[%clk 0:03:00.7]}
4. Nf3 {[%clk 0:02:57.6]} 4... Bg7 {[%clk 0:03:01.2]} 5. Bc4 {[%clk 0:02:57.6]}
5... e6 {[%clk 0:03:01.5]} 6. f5 {[%clk 0:02:58]} 6... Nge7 {[%clk 0:03:01.5]}
7. fxe6 {[%clk 0:02:57.9]} 7... fxe6 {[%clk 0:02:59.3]} 8. O-O {[%clk
0:02:57.7]} 8... O-O {[%clk 0:02:59.4]} 9. d3 {[%clk 0:02:57.5]} 9... h6 {[%clk
0:02:57.7]} 10. Qe1 {[%clk 0:02:54.5]} 10... d5 {[%clk 0:02:56.2]} 11. Bb3
{[%clk 0:02:53.8]} 11... Nd4 {[%clk 0:02:54.2]} 12. Nxd4 {[%clk 0:02:46.7]}
12... cxd4 {[%clk 0:02:52.1]} 13. Ne2 {[%clk 0:02:43.2]} 13... dxe4 {[%clk
0:02:49.6]} 14. Rxf8+ {[%clk 0:02:37.8]} 14... Qxf8 {[%clk 0:02:44.8]} 15. dxe4
{[%clk 0:02:37.7]} 15... Kh7 {[%clk 0:02:45.2]} 16. Qh4 {[%clk 0:02:35.5]} 16...
Nc6 {[%clk 0:02:41.7]} 17. Bd2 {[%clk 0:02:18.8]} 17... Qc5 {[%clk 0:02:40.8]}
18. Kh1 {[%clk 0:02:18.3]} 18... a5 {[%clk 0:02:33]} 19. Rf1 {[%clk 0:01:37]}
19... Ne5 {[%clk 0:02:29.3]} 20. a4 {[%clk 0:01:33]} 20... Bd7 {[%clk
0:02:28.1]} 21. Nc1 {[%clk 0:01:22.4]} 21... Rf8 {[%clk 0:02:21.8]} 22. Rxf8
{[%clk 0:01:19]} 22... Qxf8 {[%clk 0:02:22]} 23. Qe1 {[%clk 0:01:16]} 23... Qe8
{[%clk 0:02:15.7]} 24. Bxa5 {[%clk 0:00:55.7]} 24... Bxa4 {[%clk 0:02:15.7]} 25.
Qb4 {[%clk 0:00:46.2]} 25... Bxb3 {[%clk 0:02:12.7]} 26. Qxb3 {[%clk 0:00:45.1]}
26... Qc6 {[%clk 0:02:08.5]} 27. Ne2 {[%clk 0:00:29.5]} 27... Qxe4 {[%clk
0:02:07]} 28. Ng1 {[%clk 0:00:29.5]} 28... d3 {[%clk 0:02:02.2]} 29. cxd3 {[%clk
0:00:27.2]} 29... Nxd3 {[%clk 0:02:02.6]} 30. Bb6 {[%clk 0:00:25.7]} 30... Nxb2
{[%clk 0:01:58]} 31. Qh3 {[%clk 0:00:20.4]} 31... Nc4 {[%clk 0:01:56.8]} 32. Bf2
{[%clk 0:00:19.6]} 32... b5 {[%clk 0:01:55.8]} 33. Qb3 {[%clk 0:00:17.8]} 33...
Qd5 {[%clk 0:01:52.1]} 34. Bg3 {[%clk 0:00:17.3]} 34... Ne3 {[%clk 0:01:49.5]}
35. Qxd5 {[%clk 0:00:14.8]} 35... exd5 {[%clk 0:01:48.9]} 36. Ne2 {[%clk
0:00:13.1]} 36... b4 {[%clk 0:01:47.9]} 37. Nc1 {[%clk 0:00:11.4]} 37... d4
{[%clk 0:01:41.7]} 38. Be1 {[%clk 0:00:09.3]} 38... Nc2 {[%clk 0:01:39.1]} 39.
Bd2 {[%clk 0:00:07.7]} 39... h5 {[%clk 0:01:36.4]} 40. Kg1 {[%clk 0:00:07.3]}
40... Bh6 {[%clk 0:01:36.2]} 41. Bxh6 {[%clk 0:00:06.4]} 41... Kxh6 {[%clk
0:01:37.1]} 42. Kf2 {[%clk 0:00:06.6]} 42... Kg5 {[%clk 0:01:34.9]} 43. Ke2
{[%clk 0:00:06.5]} 43... Kf4 {[%clk 0:01:34.3]} 44. Kd2 {[%clk 0:00:06.3]} 44...
Ne3 {[%clk 0:01:34.4]} 45. Nd3+ {[%clk 0:00:02.5]} 45... Ke4 {[%clk 0:01:34.6]}
46. Nxb4 {[%clk 0:00:01.4]} 46... Nxg2 {[%clk 0:01:34.8]} 47. Nd3 {[%clk
0:00:01.6]} 47... Ne3 {[%clk 0:01:32.6]} 48. Nc5+ {[%clk 0:00:01.9]} 48... Kd5
{[%clk 0:01:27.3]} 49. Nd3 {[%clk 0:00:01.9]} 49... g5 {[%clk 0:01:27.1]} 50.
Ke2 {[%clk 0:00:02.3]} 50... Ke4 {[%clk 0:01:25.5]} 51. Nc5+ {[%clk 0:00:01.7]}
51... Kf4 {[%clk 0:01:25.8]} 52. Ne6+ {[%clk 0:00:01.7]} 52... Kg4 {[%clk
0:01:22.2]} 53. Nxd4 {[%clk 0:00:01.7]} 53... Nd5 {[%clk 0:01:21.5]} 54. Kf2
{[%clk 0:00:01.9]} 54... h4 {[%clk 0:01:20.6]} 55. Kg2 {[%clk 0:00:01.8]} 55...
Nf4+ {[%clk 0:01:20.8]} 56. Kg1 {[%clk 0:00:01.8]} 56... h3 {[%clk 0:01:20.3]}
57. Nc2 {[%clk 0:00:01.6]} 57... Ne2+ {[%clk 0:01:20.7]} 58. Kf2 {[%clk
0:00:01.3]} 58... Nc3 {[%clk 0:01:21.6]} 59. Ne3+ {[%clk 0:00:01.4]} 59... Kf4
{[%clk 0:01:21.9]} 60. Nc4 {[%clk 0:00:02]} 60... Ne4+ {[%clk 0:01:21.8]} 61.
Kg1 {[%clk 0:00:02.4]} 61... g4 {[%clk 0:01:22.7]} 62. Nb6 {[%clk 0:00:02.2]}
62... g3 {[%clk 0:01:20.7]} 63. Nd5+ {[%clk 0:00:02.4]} 63... Kf3 {[%clk
0:01:20.4]} 64. hxg3 {[%clk 0:00:02.7]} 64... Kxg3 {[%clk 0:01:18.3]} 65. Nf4
{[%clk 0:00:02.8]} 65... h2+ {[%clk 0:01:17.3]} 0-1

[Event "*** Titled Tuesday Blitz"]
[Site "Chess.com"]
[Date "2020.12.29"]
[Round "8"]
[White "DishonorOnYourCow"]
[Black "MasterMK73"]
[Result "1-0"]
[WhiteElo "2445"]
[BlackElo "2243"]
[TimeControl "180+1"]
[EndTime "11:28:13 PST"]
[Termination "DishonorOnYourCow won on time"]

1. d4 {[%clk 0:03:00.9]} 1... d5 {[%clk 0:02:58.9]} 2. c4 {[%clk 0:03:00.5]}
2... e6 {[%clk 0:02:59]} 3. Nc3 {[%clk 0:03:00.6]} 3... c6 {[%clk 0:02:59.2]} 4.
e4 {[%clk 0:03:00.1]} 4... dxe4 {[%clk 0:02:59]} 5. Nxe4 {[%clk 0:03:01]} 5...
Bb4+ {[%clk 0:02:59.1]} 6. Bd2 {[%clk 0:03:01.6]} 6... Qxd4 {[%clk 0:02:59.2]}
7. Bxb4 {[%clk 0:03:01.9]} 7... Qxe4+ {[%clk 0:02:59.7]} 8. Be2 {[%clk
0:03:02.1]} 8... Qxg2 {[%clk 0:02:56]} 9. Bf3 {[%clk 0:03:01.1]} 9... Qg5 {[%clk
0:02:55.9]} 10. Ne2 {[%clk 0:02:52.4]} 10... Nd7 {[%clk 0:02:08.5]} 11. Rg1
{[%clk 0:02:42.1]} 11... Qf6 {[%clk 0:02:07.5]} 12. Bc3 {[%clk 0:02:36.8]} 12...
e5 {[%clk 0:02:05.9]} 13. Bg4 {[%clk 0:02:31.6]} 13... Ne7 {[%clk 0:01:54.8]}
14. Qd2 {[%clk 0:02:24.2]} 14... Nc5 {[%clk 0:01:32.6]} 15. Bxc8 {[%clk
0:02:11.6]} 15... Rxc8 {[%clk 0:01:30.4]} 16. Qe3 {[%clk 0:02:12.1]} 16... Nd7
{[%clk 0:01:27.3]} 17. O-O-O {[%clk 0:02:10.9]} 17... Ng6 {[%clk 0:00:55.8]} 18.
Qh3 {[%clk 0:01:37.8]} 18... Rd8 {[%clk 0:00:50]} 19. f4 {[%clk 0:01:17]} 19...
Nc5 {[%clk 0:00:27.1]} 20. fxe5 {[%clk 0:01:11]} 20... Qe7 {[%clk 0:00:20.6]}
21. Qe3 {[%clk 0:00:59.8]} 21... O-O {[%clk 0:00:19.4]} 22. h4 {[%clk
0:00:52.2]} 22... Na4 {[%clk 0:00:19.4]} 23. h5 {[%clk 0:00:51.2]} 23... Nxc3
{[%clk 0:00:18.8]} 24. Qxc3 {[%clk 0:00:49.5]} 24... Nxe5 {[%clk 0:00:18]} 25.
Nf4 {[%clk 0:00:43.2]} 25... f6 {[%clk 0:00:16.8]} 26. h6 {[%clk 0:00:42.6]}
26... g5 {[%clk 0:00:15.9]} 27. Nh5 {[%clk 0:00:40.6]} 27... Rxd1+ {[%clk
0:00:14.3]} 28. Rxd1 {[%clk 0:00:38.6]} 28... Rd8 {[%clk 0:00:14.8]} 29. Rf1
{[%clk 0:00:37.8]} 29... Nd3+ {[%clk 0:00:12.7]} 30. Kb1 {[%clk 0:00:37.8]}
30... Nf4 {[%clk 0:00:12.4]} 31. Nxf6+ {[%clk 0:00:35.9]} 31... Kf8 {[%clk
0:00:11]} 32. Ng4 {[%clk 0:00:29.1]} 32... Kg8 {[%clk 0:00:07.7]} 33. Nf6+
{[%clk 0:00:18.2]} 33... Kf8 {[%clk 0:00:06.5]} 34. Re1 {[%clk 0:00:18.8]} 34...
Qf7 {[%clk 0:00:06.2]} 35. Ne4 {[%clk 0:00:15.4]} 35... Qg6 {[%clk 0:00:06.1]}
36. b3 {[%clk 0:00:08.5]} 36... Re8 {[%clk 0:00:05]} 37. Qd4 {[%clk 0:00:07.7]}
37... Ne6 {[%clk 0:00:02.5]} 38. Qf2+ {[%clk 0:00:07.2]} 38... Nf4 {[%clk
0:00:02.3]} 39. Kb2 {[%clk 0:00:07.2]} 39... Rxe4 {[%clk 0:00:01.5]} 40. Qc5+
{[%clk 0:00:07.5]} 1-0

[Event "*** Titled Tuesday Blitz"]
[Site "Chess.com"]
[Date "2020.12.29"]
[Round "8"]
[White "Salem-AR"]
[Black "GM_Crest"]
[Result "1/2-1/2"]
[WhiteElo "2915"]
[BlackElo "2698"]
[TimeControl "180+1"]
[EndTime "11:28:14 PST"]
[Termination "Game drawn - insufficient material"]

1. e4 {[%clk 0:02:56.3]} 1... e6 {[%clk 0:02:59.8]} 2. d4 {[%clk 0:02:56.4]}
2... d5 {[%clk 0:03:00.4]} 3. Nc3 {[%clk 0:02:57.1]} 3... Bb4 {[%clk 0:03:00]}
4. e5 {[%clk 0:02:57.2]} 4... c5 {[%clk 0:03:00.6]} 5. a3 {[%clk 0:02:57.9]}
5... Bxc3+ {[%clk 0:03:00.7]} 6. bxc3 {[%clk 0:02:58.8]} 6... Qc7 {[%clk
0:02:59.7]} 7. a4 {[%clk 0:02:56.4]} 7... cxd4 {[%clk 0:02:42.4]} 8. cxd4 {[%clk
0:02:56]} 8... Qc3+ {[%clk 0:02:42.5]} 9. Bd2 {[%clk 0:02:56.6]} 9... Qxd4
{[%clk 0:02:42.8]} 10. Nf3 {[%clk 0:02:57.3]} 10... Qc5 {[%clk 0:02:40.4]} 11.
Rb1 {[%clk 0:02:42.2]} 11... Nc6 {[%clk 0:02:39.9]} 12. Bd3 {[%clk 0:02:40.5]}
12... Nge7 {[%clk 0:02:34.1]} 13. O-O {[%clk 0:02:05.6]} 13... Ng6 {[%clk
0:02:33.7]} 14. Re1 {[%clk 0:01:49.3]} 14... O-O {[%clk 0:02:32.8]} 15. h4
{[%clk 0:01:45.8]} 15... f6 {[%clk 0:02:22.4]} 16. exf6 {[%clk 0:01:31.9]} 16...
Rxf6 {[%clk 0:02:22.4]} 17. Bg5 {[%clk 0:01:26.7]} 17... Rf7 {[%clk 0:02:22.4]}
18. h5 {[%clk 0:01:06.3]} 18... Nf4 {[%clk 0:02:21.3]} 19. Bxf4 {[%clk
0:00:20.2]} 19... Rxf4 {[%clk 0:02:20.7]} 20. Rb5 {[%clk 0:00:20.4]} 20... Qf8
{[%clk 0:02:17.1]} 21. Qd2 {[%clk 0:00:13.1]} 21... Rxf3 {[%clk 0:02:14.5]} 22.
gxf3 {[%clk 0:00:12.7]} 22... Qxf3 {[%clk 0:02:14.5]} 23. Qg5 {[%clk 0:00:11.8]}
23... Qf6 {[%clk 0:01:58.2]} 24. Qxf6 {[%clk 0:00:11.6]} 24... gxf6 {[%clk
0:01:59]} 25. Re3 {[%clk 0:00:09.4]} 25... b6 {[%clk 0:01:40.1]} 26. Rg3+ {[%clk
0:00:08]} 26... Kh8 {[%clk 0:01:40.3]} 27. h6 {[%clk 0:00:06.2]} 27... Ba6
{[%clk 0:01:33.5]} 28. Rb1 {[%clk 0:00:05.2]} 28... Bxd3 {[%clk 0:01:32.9]} 29.
cxd3 {[%clk 0:00:05.8]} 29... Nd4 {[%clk 0:01:31.3]} 30. Re1 {[%clk 0:00:05.4]}
30... e5 {[%clk 0:01:29.1]} 31. Kg2 {[%clk 0:00:06]} 31... Nf5 {[%clk
0:01:28.6]} 32. Rf3 {[%clk 0:00:05.7]} 32... Nh4+ {[%clk 0:01:28.7]} 33. Kg3
{[%clk 0:00:06.4]} 33... Nxf3 {[%clk 0:01:28.8]} 34. Kxf3 {[%clk 0:00:07.3]}
34... Rc8 {[%clk 0:01:22.8]} 35. Kg4 {[%clk 0:00:07.4]} 35... Rg8+ {[%clk
0:01:20.9]} 36. Kf5 {[%clk 0:00:07.1]} 36... Rg6 {[%clk 0:01:21.5]} 37. Rc1
{[%clk 0:00:04.7]} 37... Rxh6 {[%clk 0:01:18.9]} 38. Rc8+ {[%clk 0:00:05.4]}
38... Kg7 {[%clk 0:01:19.1]} 39. Rc7+ {[%clk 0:00:06.3]} 39... Kf8 {[%clk
0:01:19.5]} 40. Rxa7 {[%clk 0:00:07.2]} 40... Ke8 {[%clk 0:01:05.7]} 41. Ke6
{[%clk 0:00:07.1]} 41... Kd8 {[%clk 0:01:04.2]} 42. Kxd5 {[%clk 0:00:06.3]}
42... Rh2 {[%clk 0:01:03.4]} 43. Kd6 {[%clk 0:00:05.7]} 43... Kc8 {[%clk
0:01:01.7]} 44. Kc6 {[%clk 0:00:06]} 44... Kb8 {[%clk 0:01:01.6]} 45. Kxb6
{[%clk 0:00:06.4]} 45... Rxf2 {[%clk 0:01:00.8]} 46. Rxh7 {[%clk 0:00:07.2]}
46... Rb2+ {[%clk 0:01:00.1]} 47. Kc6 {[%clk 0:00:07.4]} 47... Rc2+ {[%clk
0:00:51.3]} 48. Kd5 {[%clk 0:00:05.8]} 48... Rd2 {[%clk 0:00:50.6]} 49. Ke4
{[%clk 0:00:05.3]} 49... Ra2 {[%clk 0:00:49.7]} 50. Kf5 {[%clk 0:00:03.2]} 50...
Rxa4 {[%clk 0:00:49.9]} 51. Kxf6 {[%clk 0:00:03.8]} 51... Rd4 {[%clk 0:00:49.1]}
52. Rh3 {[%clk 0:00:03.4]} 52... e4 {[%clk 0:00:49.4]} 53. dxe4 {[%clk
0:00:03.4]} 53... Rxe4 {[%clk 0:00:49.9]} 54. Rf3 {[%clk 0:00:03.6]} 54... Kc7
{[%clk 0:00:49.5]} 55. Kf5 {[%clk 0:00:04]} 55... Re8 {[%clk 0:00:49]} 56. Rf4
{[%clk 0:00:04.4]} 56... Rf8+ {[%clk 0:00:48.9]} 57. Kg4 {[%clk 0:00:05]} 57...
Rxf4+ {[%clk 0:00:49.8]} 58. Kxf4 {[%clk 0:00:05.9]} 1/2-1/2